bitfinex/quotes_BTCUSD_20241102
["timestamp","ask_amount","ask_price","bid_price","bid_amount"]
[1730527544673,0.2384961,69751.0,69750.0,0.15352827]
[1730527544887,0.2384961,69751.0,69750.0,0.16452827]
[1730527545381,0.40490742,69751.0,69750.0,0.15352827]
[1730527545620,0.40490742,69751.0,69750.0,0.16252827]
[1730527545870,0.40490742,69751.0,69750.0,0.14852827]
[1730527546371,0.33990095,69751.0,69750.0,0.14852827]
[1730527546600,0.33990095,69751.0,69750.0,0.15852827]
[1730527547078,0.33990095,69751.0,69750.0,0.16652827]
[1730527547312,0.33990095,69751.0,69750.0,0.14852827]
[1730527547539,0.33990095,69751.0,69750.0,0.13952827]
[1730527547800,0.33990095,69751.0,69750.0,0.14952827]
[1730527548032,0.33990095,69751.0,69750.0,0.15852827]
[1730527548541,0.33990095,69751.0,69750.0,0.14952827]
[1730527548769,0.33990095,69751.0,69750.0,0.15852827]
[1730527549420,0.33990095,69751.0,69750.0,0.14852827]
[1730527549820,0.33990095,69751.0,69750.0,0.15652827]
[1730527550029,0.33990095,69751.0,69750.0,0.14852827]
[1730527550399,0.33990095,69751.0,69750.0,0.15852827]
[1730527554383,0.42700027,69751.0,69750.0,0.15852827]
[1730527555631,0.41355731,69751.0,69750.0,0.15852827]
[1730527555802,0.33985904,69751.0,69750.0,0.15852827]
[1730527556424,0.30501631,69751.0,69750.0,0.15852827]
[1730527556688,0.33985319,69751.0,69750.0,0.15852827]
[1730527558993,0.30501631,69751.0,69750.0,0.15852827]
[1730527559235,0.33984708,69751.0,69750.0,0.15852827]
[1730527564168,0.30501631,69751.0,69750.0,0.15852827]
[1730527564372,0.33984841,69751.0,69750.0,0.15852827]
[1730527565143,0.33985199,69751.0,69750.0,0.15852827]
[1730527566997,0.34486182,69751.0,69750.0,0.15852827]
[1730527568419,0.31001631,69751.0,69750.0,0.15852827]
[1730527568853,0.50323287,69751.0,69750.0,0.02007302]
[1730527569081,0.58903315,69751.0,69750.0,0.02007302]
[1730527569278,0.50323287,69751.0,69750.0,0.02007302]
[1730527570153,0.58901311,69751.0,69750.0,0.02007302]
[1730527572084,0.58903754,69751.0,69750.0,0.02007302]
[1730527572323,0.50320084,69751.0,69750.0,0.02007302]
[1730527572548,0.50320084,69751.0,69735.0,0.21508923]
[1730527572549,0.10142285,69739.0,69735.0,0.21508923]
[1730527572783,0.13632146,69739.0,69738.0,0.16090049]
[1730527573005,0.17121883,69739.0,69738.0,0.16090049]
[1730527573932,0.17121883,69739.0,69738.0,0.17490049]
[1730527574173,0.17123923,69739.0,69738.0,0.18890049]
[1730527574735,0.1578086,69739.0,69738.0,0.18890049]
[1730527575106,0.17123883,69739.0,69738.0,0.18890049]
[1730527575866,0.13632022,69739.0,69738.0,0.18890049]
[1730527576072,0.17123589,69739.0,69738.0,0.18890049]
[1730527577342,0.17123589,69739.0,69738.0,0.16645525]
[1730527577548,0.17623589,69739.0,69738.0,0.16645525]
[1730527577753,0.26983589,69739.0,69738.0,0.16645525]
[1730527577959,0.35183589,69739.0,69738.0,0.16645525]
[1730527578379,0.35183589,69739.0,69738.0,0.15245525]
[1730527578911,0.35283589,69739.0,69738.0,0.15945525]
[1730527579130,0.35283589,69739.0,69738.0,0.14545525]
[1730527579352,0.35283589,69739.0,69738.0,0.13845525]
[1730527579353,0.31692022,69739.0,69738.0,0.13845525]
[1730527579567,0.3528279,69739.0,69738.0,0.14545525]
[1730527580028,0.3518279,69739.0,69738.0,0.13845525]
[1730527580232,0.3518279,69739.0,69738.0,0.14445525]
[1730527580794,0.3528279,69739.0,69738.0,0.15045525]
[1730527581037,0.3528279,69739.0,69738.0,0.15209925]
[1730527583004,0.35281358,69739.0,69738.0,0.15209925]
[1730527583420,0.35281238,69739.0,69738.0,0.15209925]
[1730527584435,0.35281238,69739.0,69738.0,0.013644]
[1730527585349,0.41712077,69739.0,69738.0,0.013644]
[1730527585671,0.39568941,69739.0,69738.0,0.013644]
[1730527585885,0.39568697,69739.0,69738.0,0.013644]
[1730527586257,0.36079725,69739.0,69738.0,0.013644]
[1730527586460,0.39568699,69739.0,69738.0,0.013644]
[1730527586645,0.31792022,69739.0,69738.0,0.013644]
[1730527586794,0.39569037,69739.0,69738.0,0.013644]
[1730527587014,0.35280734,69739.0,69738.0,0.013644]
[1730527587212,0.39568634,69739.0,69738.0,0.013644]
[1730527587423,0.35280734,69739.0,69738.0,0.013644]
[1730527587631,0.41712289,69739.0,69738.0,0.013644]
[1730527588432,0.35280734,69739.0,69738.0,0.013644]
[1730527588638,0.51117366,69739.0,69738.0,0.013644]
[1730527589126,0.35280734,69739.0,69738.0,0.013644]
[1730527589487,0.596974,69739.0,69738.0,0.013644]
[1730527590045,0.35280734,69739.0,69738.0,0.013644]
[1730527590254,0.5621606,69739.0,69738.0,0.013644]
[1730527590460,0.59704875,69739.0,69738.0,0.013644]
[1730527590660,0.35280837,69739.0,69738.0,0.013644]
[1730527591078,0.41717395,69739.0,69738.0,0.013644]
[1730527592900,0.35280837,69739.0,69738.0,0.013644]
[1730527593545,0.41717395,69739.0,69738.0,0.013644]
[1730527593961,0.41717395,69739.0,69730.0,0.0995]
[1730527593962,0.100385,69731.0,69730.0,0.084426]
[1730527594221,0.13633196,69731.0,69730.0,0.13845525]
[1730527594431,0.13633573,69731.0,69730.0,0.13845525]
[1730527594666,0.17117706,69731.0,69730.0,0.13845525]
[1730527595089,0.17217706,69731.0,69730.0,0.15145525]
[1730527595547,0.17317706,69731.0,69730.0,0.16545525]
[1730527597070,0.23543825,69731.0,69730.0,0.16545525]
[1730527597670,0.23545528,69731.0,69730.0,0.16545525]
[1730527600480,0.17319409,69731.0,69730.0,0.16545525]
[1730527601161,0.13827518,69731.0,69730.0,0.16545525]
[1730527601366,0.17320211,69731.0,69730.0,0.16545525]
[1730527603780,0.17320211,69731.0,69730.0,0.16709925]
[1730527604660,0.1732124,69731.0,69730.0,0.16709925]
[1730527605074,0.13827518,69731.0,69730.0,0.16709925]
[1730527605281,0.1732124,69731.0,69730.0,0.16709925]
[1730527605470,0.13827518,69731.0,69730.0,0.16709925]
[1730527605684,0.173217,69731.0,69730.0,0.16709925]
[1730527607044,0.17322291,69731.0,69730.0,0.16709925]
[1730527608282,0.18119984,69731.0,69730.0,0.16709925]
[1730527608497,0.21615453,69731.0,69730.0,0.16709925]
[1730527611158,0.17322987,69731.0,69730.0,0.16709925]
[1730527612359,0.23761687,69731.0,69730.0,0.16709925]
[1730527614334,0.17322987,69731.0,69730.0,0.16709925]
[1730527614796,0.23769687,69731.0,69730.0,0.16709925]
[1730527615944,0.23771403,69731.0,69730.0,0.16709925]
[1730527616187,0.23853603,69731.0,69730.0,0.16709925]
[1730527616806,0.17406903,69731.0,69730.0,0.16709925]
[1730527617237,0.23853603,69731.0,69730.0,0.16709925]
[1730527618368,0.23855605,69731.0,69730.0,0.16709925]
[1730527618770,0.23855613,69731.0,69730.0,0.16709925]
[1730527620239,0.17406911,69731.0,69730.0,0.16709925]
[1730527621099,0.33282056,69731.0,69730.0,0.16709925]
[1730527621757,0.41883504,69731.0,69730.0,0.16709925]
[1730527621972,0.33282258,69731.0,69730.0,0.16709925]
[1730527623244,0.44033816,69731.0,69730.0,0.16709925]
[1730527624277,0.44033816,69731.0,69730.0,0.34079925]
[1730527624490,0.33282258,69731.0,69730.0,0.34079925]
[1730527624709,0.33282848,69731.0,69730.0,0.34079925]
[1730527625161,0.23244348,69731.0,69730.0,0.34079925]
[1730527625400,0.3184956,69731.0,69730.0,0.34079925]
[1730527625611,0.23244348,69731.0,69730.0,0.34079925]
[1730527625818,0.07369001,69731.0,69730.0,0.34079925]
[1730527626035,0.23251519,69731.0,69730.0,0.34079925]
[1730527626279,0.31858064,69731.0,69730.0,0.34079925]
[1730527626557,0.31857976,69731.0,69730.0,0.34079925]
[1730527626780,0.23252348,69731.0,69730.0,0.34079925]
[1730527627238,0.31857976,69731.0,69730.0,0.34079925]
[1730527627476,0.41896476,69731.0,69730.0,0.34079925]
[1730527628181,0.33290848,69731.0,69730.0,0.34079925]
[1730527628416,0.33290523,69731.0,69730.0,0.34079925]
[1730527630745,0.17407088,69731.0,69730.0,0.34079925]
[1730527630971,0.33295611,69731.0,69730.0,0.34079925]
[1730527631431,0.32889771,69731.0,69730.0,0.34079925]
[1730527631918,0.32889557,69731.0,69730.0,0.34079925]
[1730527632158,0.32889557,69731.0,69730.0,0.16709925]
[1730527632615,0.43650038,69731.0,69730.0,0.16709925]
[1730527632829,0.32889557,69731.0,69730.0,0.16709925]
[1730527633259,0.43650038,69731.0,69730.0,0.16709925]
[1730527635452,0.43650038,69731.0,69730.0,0.43698625]
[1730527635453,0.22745858,69731.0,69730.0,0.43698625]
[1730527635667,0.11161496,69731.0,69730.0,0.43698625]
[1730527635898,0.11160844,69731.0,69730.0,0.43698625]
[1730527636117,0.09009138,69731.0,69730.0,0.43698625]
[1730527636322,0.05930845,69731.0,69730.0,0.43698625]
[1730527636534,0.05930845,69731.0,69730.0,0.42398625]
[1730527636757,0.05830845,69731.0,69730.0,0.42398625]
[1730527636968,0.05930845,69731.0,69730.0,0.43798625]
[1730527638248,0.04586029,69731.0,69730.0,0.43798625]
[1730527638496,0.04486029,69731.0,69730.0,0.42398625]
[1730527638721,0.04586029,69731.0,69730.0,0.43798625]
[1730527638954,0.002822,69731.0,69730.0,0.43798625]
[1730527654536,0.002822,69731.0,69730.0,0.55927213]
[1730527654748,0.002822,69731.0,69730.0,0.43798625]
[1730527665365,0.01627154,69731.0,69730.0,0.43798625]
[1730527668292,0.01627128,69731.0,69730.0,0.43798625]
[1730527669344,0.0162712,69731.0,69730.0,0.43798625]
[1730527676959,0.002822,69731.0,69730.0,0.43798625]
[1730527681947,0.01627275,69731.0,69730.0,0.43798625]
[1730527683004,0.002822,69731.0,69730.0,0.43798625]
[1730527684033,0.01627288,69731.0,69730.0,0.43798625]
[1730527685109,0.002822,69731.0,69730.0,0.43798625]
[1730527685334,0.01627324,69731.0,69730.0,0.43798625]
[1730527685577,0.002822,69731.0,69730.0,0.43798625]
[1730527687250,0.01627339,69731.0,69730.0,0.43798625]
[1730527687484,0.01627339,69731.0,69730.0,0.26848625]
[1730527688704,0.002822,69731.0,69730.0,0.26848625]
[1730527689184,0.01627383,69731.0,69730.0,0.26848625]
[1730527692401,0.0162738,69731.0,69730.0,0.26848625]
[1730527696017,0.002822,69731.0,69730.0,0.26848625]
[1730527696243,0.01627398,69731.0,69730.0,0.26848625]
[1730527699503,0.01627398,69731.0,69730.0,0.31140804]
[1730527699723,0.01627447,69731.0,69730.0,0.31140804]
[1730527699955,0.01627447,69731.0,69730.0,0.26848625]
[1730527700411,0.01627447,69731.0,69730.0,0.31140804]
[1730527700882,0.01627447,69731.0,69730.0,0.26848625]
[1730527703451,0.04798538,69731.0,69730.0,0.26848625]
[1730527703673,0.01695779,69731.0,69730.0,0.26848625]
[1730527705063,0.01695779,69731.0,69730.0,0.16809925]
[1730527705296,0.11734279,69731.0,69730.0,0.16809925]
[1730527705534,0.16164366,69731.0,69730.0,0.16809925]
[1730527706007,0.09510664,69731.0,69730.0,0.16809925]
[1730527706231,0.27973917,69731.0,69730.0,0.16809925]
[1730527706459,0.29317904,69731.0,69730.0,0.16809925]
[1730527706897,0.32101212,69731.0,69730.0,0.16809925]
[1730527707111,0.32001212,69731.0,69730.0,0.15409925]
[1730527707331,0.31896327,69731.0,69730.0,0.15409925]
[1730527707556,0.32101212,69731.0,69730.0,0.16209925]
[1730527707775,0.32001212,69731.0,69730.0,0.14809925]
[1730527708059,0.31901212,69731.0,69730.0,0.14009925]
[1730527708255,0.31896327,69731.0,69730.0,0.14709925]
[1730527708524,0.32001212,69731.0,69730.0,0.15409925]
[1730527708754,0.31996327,69731.0,69730.0,0.15409925]
[1730527708976,0.32001212,69731.0,69730.0,0.14709925]
[1730527709434,0.31996327,69731.0,69730.0,0.15309925]
[1730527709658,0.30757225,69731.0,69730.0,0.15309925]
[1730527710115,0.3065234,69731.0,69730.0,0.15309925]
[1730527710302,0.30757225,69731.0,69730.0,0.15309925]
[1730527710732,0.3065234,69731.0,69730.0,0.15309925]
[1730527711162,0.30757225,69731.0,69730.0,0.15309925]
[1730527711791,0.3065234,69731.0,69730.0,0.15309925]
[1730527711993,0.30757225,69731.0,69730.0,0.15309925]
[1730527713091,0.3065234,69731.0,69730.0,0.15309925]
[1730527713313,0.30757225,69731.0,69730.0,0.15309925]
[1730527713535,0.37848188,69731.0,69730.0,0.15309925]
[1730527714225,0.4214721,69731.0,69730.0,0.15309925]
[1730527714491,0.44296722,69731.0,69730.0,0.15309925]
[1730527714721,0.37848188,69731.0,69730.0,0.15309925]
[1730527714950,0.55656165,69731.0,69730.0,0.15309925]
[1730527715175,0.63421732,69731.0,69730.0,0.15309925]
[1730527715406,0.74169289,69731.0,69730.0,0.15309925]
[1730527715651,0.63421732,69731.0,69730.0,0.15309925]
[1730527715868,0.64758868,69731.0,69730.0,0.15309925]
[1730527716314,0.74999085,69731.0,69730.0,0.15309925]
[1730527716519,0.64758868,69731.0,69730.0,0.15309925]
[1730527716733,0.73348207,69731.0,69730.0,0.15309925]
[1730527717639,0.64758868,69731.0,69730.0,0.15309925]
[1730527718087,0.64258868,69731.0,69730.0,0.15309925]
[1730527718330,0.64758868,69731.0,69730.0,0.15309925]
[1730527718806,0.55338914,69731.0,69730.0,0.15309925]
[1730527719275,0.53996767,69731.0,69730.0,0.15309925]
[1730527719523,0.55337445,69731.0,69730.0,0.15309925]
[1730527719755,0.56677874,69731.0,69730.0,0.15309925]
[1730527719989,0.55337196,69731.0,69730.0,0.15309925]
[1730527720439,0.48898549,69731.0,69730.0,0.15309925]
[1730527721593,0.53188622,69731.0,69730.0,0.15309925]
[1730527722738,0.37387727,69731.0,69730.0,0.15309925]
[1730527722955,0.36887727,69731.0,69730.0,0.15309925]
[1730527723185,0.33097654,69731.0,69730.0,0.15309925]
[1730527723441,0.32597654,69731.0,69730.0,0.15309925]
[1730527723662,0.33097654,69731.0,69730.0,0.15309925]
[1730527726187,0.32597654,69731.0,69730.0,0.15309925]
[1730527726409,0.33097654,69731.0,69730.0,0.15309925]
[1730527726665,0.32597654,69731.0,69730.0,0.15309925]
[1730527726891,0.33097654,69731.0,69730.0,0.15309925]
[1730527727368,0.32597654,69731.0,69730.0,0.15309925]
[1730527727599,0.33097654,69731.0,69730.0,0.15309925]
[1730527729434,0.32597654,69731.0,69730.0,0.15309925]
[1730527729897,0.24887654,69731.0,69730.0,0.15309925]
[1730527730998,0.25387654,69731.0,69730.0,0.15309925]
[1730527731647,0.24887654,69731.0,69730.0,0.15309925]
[1730527732478,0.15117654,69731.0,69730.0,0.15309925]
[1730527732678,0.04579154,69731.0,69730.0,0.25348625]
[1730527733734,0.04579154,69731.0,69730.0,0.15309925]
[1730527736102,0.14617654,69731.0,69730.0,0.15309925]
[1730527739992,0.21067649,69731.0,69730.0,0.15309925]
[1730527740893,0.23216724,69731.0,69730.0,0.15309925]
[1730527741095,0.16766729,69731.0,69730.0,0.15309925]
[1730527742939,0.1677068,69731.0,69730.0,0.15309925]
[1730527743398,0.1727068,69731.0,69730.0,0.15309925]
[1730527743857,0.15120861,69731.0,69730.0,0.15309925]
[1730527747012,0.21562931,69731.0,69730.0,0.15309925]
[1730527747449,0.15120861,69731.0,69730.0,0.15309925]
[1730527747729,0.30978007,69731.0,69730.0,0.15309925]
[1730527748592,0.35458365,69731.0,69730.0,0.15309925]
[1730527748812,0.44047792,69731.0,69730.0,0.15309925]
[1730527749924,0.42704156,69731.0,69730.0,0.15309925]
[1730527750149,0.4404835,69731.0,69730.0,0.15309925]
[1730527750820,0.35458923,69731.0,69730.0,0.15309925]
[1730527751051,0.39573388,69731.0,69730.0,0.15309925]
[1730527751520,0.35459013,69731.0,69730.0,0.15309925]
[1730527753481,0.35459152,69731.0,69730.0,0.15309925]
[1730527753709,0.44851603,69731.0,69730.0,0.15309925]
[1730527753916,0.46195936,69731.0,69730.0,0.15309925]
[1730527756650,0.35459152,69731.0,69730.0,0.15309925]
[1730527760226,0.35459152,69731.0,69730.0,0.014644]
[1730527760665,0.35481663,69731.0,69730.0,0.014644]
[1730527762840,0.35681663,69731.0,69730.0,0.014644]
[1730527763072,0.35481663,69731.0,69730.0,0.014644]
[1730527763282,0.44191595,69731.0,69730.0,0.014644]
[1730527764374,0.42847262,69731.0,69730.0,0.014644]
[1730527764586,0.44191674,69731.0,69730.0,0.014644]
[1730527765442,0.44192378,69731.0,69730.0,0.014644]
[1730527767044,0.44392378,69731.0,69730.0,0.014644]
[1730527767740,0.54292378,69731.0,69730.0,0.014644]
[1730527768359,0.64292378,69731.0,69730.0,0.014644]
[1730527768523,0.64092378,69731.0,69730.0,0.001644]
[1730527770223,0.62747966,69731.0,69730.0,0.001644]
[1730527770833,0.6409257,69731.0,69730.0,0.001644]
[1730527771535,0.62747966,69731.0,69730.0,0.001644]
[1730527774673,0.6274142,69731.0,69730.0,0.001644]
[1730527775529,0.6254142,69731.0,69730.0,0.001644]
[1730527776391,0.00104885,69720.0,69719.0,0.06751672]
[1730527776597,0.14444341,69720.0,69719.0,0.20597197]
[1730527776811,0.17436956,69720.0,69719.0,0.20597197]
[1730527777717,0.17536956,69720.0,69719.0,0.21397197]
[1730527778127,0.17636956,69720.0,69719.0,0.22197197]
[1730527779444,0.133376,69720.0,69719.0,0.22197197]
[1730527779668,0.17636956,69720.0,69719.0,0.22197197]
[1730527780312,0.18981444,69720.0,69719.0,0.22197197]
[1730527782574,0.17636956,69720.0,69719.0,0.22197197]
[1730527782728,0.1898138,69720.0,69719.0,0.22197197]
[1730527785471,0.14682024,69720.0,69719.0,0.22197197]
[1730527785671,0.18982132,69720.0,69719.0,0.22197197]
[1730527787978,0.18982132,69720.0,69719.0,0.22361597]
[1730527788396,0.14682024,69720.0,69719.0,0.22361597]
[1730527789700,0.14682131,69720.0,69719.0,0.22361597]
[1730527792416,0.14682131,69720.0,69719.0,0.15609925]
[1730527793757,0.133376,69720.0,69719.0,0.15609925]
[1730527793967,0.14682504,69720.0,69719.0,0.15609925]
[1730527800750,0.14683323,69720.0,69719.0,0.15609925]
[1730527800983,0.14765523,69720.0,69719.0,0.15609925]
[1730527801605,0.30645984,69720.0,69719.0,0.15609925]
[1730527802467,0.3064612,69720.0,69719.0,0.15609925]
[1730527803166,0.31146137,69720.0,69719.0,0.15609925]
[1730527803364,0.46385103,69720.0,69719.0,0.017644]
[1730527804015,0.46885103,69720.0,69719.0,0.017644]
[1730527804218,0.53301513,69720.0,69719.0,0.017644]
[1730527805338,0.74311445,69720.0,69719.0,0.017644]
[1730527805762,0.65601513,69720.0,69719.0,0.017644]
[1730527805975,0.65601513,69720.0,69719.0,0.009644]
[1730527805976,0.65501513,69720.0,69719.0,0.009644]
[1730527806182,0.74211445,69720.0,69719.0,0.009644]
[1730527806426,0.74111445,69720.0,69719.0,0.001644]
[1730527806649,0.65401513,69720.0,69719.0,0.001644]
[1730527806871,0.65801513,69720.0,69719.0,0.001644]
[1730527807295,0.65801513,69720.0,69719.0,0.005644]
[1730527807729,0.65801513,69720.0,69719.0,0.001644]
[1730527808137,0.66199818,69720.0,69719.0,0.001644]
[1730527810573,0.66399056,69720.0,69719.0,0.001644]
[1730527810796,0.66199056,69720.0,69719.0,0.001644]
[1730527811378,0.7909342,69720.0,69719.0,0.001644]
[1730527812235,0.66199056,69720.0,69719.0,0.001644]
[1730527813386,0.66009841,69720.0,69719.0,0.001644]
[1730527814022,0.66009168,69720.0,69719.0,0.001644]
[1730527814466,0.66009093,69720.0,69719.0,0.001644]
[1730527815075,0.78902202,69720.0,69719.0,0.001644]
[1730527815487,0.66009093,69720.0,69719.0,0.001644]
[1730527817590,0.64666558,69720.0,69719.0,0.001644]
[1730527817807,0.6600898,69720.0,69719.0,0.001644]
[1730527818019,0.65978939,69720.0,69719.0,0.001644]
[1730527820192,0.46508939,69720.0,69719.0,0.001644]
[1730527824819,0.45166517,69720.0,69719.0,0.001644]
[1730527825037,0.4650939,69720.0,69719.0,0.001644]
[1730527828473,0.86656192,69720.0,69719.0,0.001644]
[1730527828706,0.87999755,69720.0,69719.0,0.001644]
[1730527830210,0.75110012,69720.0,69719.0,0.001644]
[1730527836012,0.75112134,69720.0,69719.0,0.001644]
[1730527836770,0.75112127,69720.0,69719.0,0.001644]
[1730527837848,0.66202195,69720.0,69719.0,0.001644]
[1730527838075,0.48812195,69720.0,69719.0,0.001644]
[1730527839617,0.49012195,69720.0,69719.0,0.001644]
[1730527839851,0.56376449,69720.0,69719.0,0.001644]
[1730527840069,0.57722082,69720.0,69719.0,0.001644]
[1730527841654,0.75052082,69720.0,69719.0,0.001644]
[1730527845408,0.75083234,69720.0,69719.0,0.001644]
[1730527847617,0.8959778,69720.0,69719.0,0.001644]
[1730527848462,0.75083234,69720.0,69719.0,0.001644]
[1730527852063,0.10647185,69705.0,69704.0,0.097]
[1730527852282,0.54170206,69705.0,69704.0,0.097]
[1730527853762,0.00804885,69703.0,69702.0,0.001644]
[1730527853983,0.32370987,69703.0,69702.0,0.001644]
[1730527854196,0.34960404,69703.0,69702.0,0.001644]
[1730527854630,0.47740436,69703.0,69702.0,0.001644]
[1730527854844,0.47540003,69703.0,69702.0,0.001644]
[1730527855061,0.3462667,69703.0,69702.0,0.001644]
[1730527855271,0.3482667,69703.0,69702.0,0.001644]
[1730527855526,0.3472667,69703.0,69702.0,0.011644]
[1730527855733,0.47940003,69703.0,69702.0,0.021644]
[1730527856380,0.5843431,69703.0,69702.0,0.021644]
[1730527856600,0.5833431,69703.0,69702.0,0.011644]
[1730527856858,0.5833431,69703.0,69702.0,0.001644]
[1730527856859,0.4532667,69703.0,69702.0,0.001644]
[1730527857508,0.47584166,69703.0,69702.0,0.001644]
[1730527857713,0.34679185,69703.0,69702.0,0.001644]
[1730527857926,0.34779185,69703.0,69702.0,0.008644]
[1730527858362,0.34679185,69703.0,69702.0,0.001644]
[1730527858575,0.44520637,69703.0,69702.0,0.001644]
[1730527859217,0.44470103,69703.0,69702.0,0.001644]
[1730527860306,0.44670103,69703.0,69702.0,0.001644]
[1730527863125,0.44470103,69703.0,69702.0,0.001644]
[1730527868635,0.44670103,69703.0,69702.0,0.001644]
[1730527868850,0.44470103,69703.0,69702.0,0.001644]
[1730527869070,0.44469146,69703.0,69702.0,0.001644]
[1730527870209,0.44633546,69703.0,69702.0,0.001644]
[1730527873632,0.44833546,69703.0,69702.0,0.001644]
[1730527874899,0.44633546,69703.0,69702.0,0.001644]
[1730527877745,0.44833546,69703.0,69702.0,0.001644]
[1730527877956,0.44633546,69703.0,69702.0,0.001644]
[1730527879414,0.43290451,69703.0,69702.0,0.001644]
[1730527879631,0.44635003,69703.0,69702.0,0.001644]
[1730527880508,0.44635263,69703.0,69702.0,0.001644]
[1730527881186,0.44576385,69703.0,69702.0,0.001644]
[1730527882997,0.43231573,69703.0,69702.0,0.001644]
[1730527883215,0.4457698,69703.0,69702.0,0.001644]
[1730527885531,0.4409372,69703.0,69702.0,0.31709925]
[1730527885982,0.5483962,69703.0,69702.0,0.31709925]
[1730527887553,0.4409372,69703.0,69702.0,0.31709925]
[1730527887806,0.42748313,69703.0,69702.0,0.31709925]
[1730527888680,0.44094039,69703.0,69702.0,0.31709925]
[1730527889318,0.52692619,69703.0,69702.0,0.31709925]
[1730527889524,0.44094039,69703.0,69702.0,0.31709925]
[1730527889739,0.52693383,69703.0,69702.0,0.31709925]
[1730527889947,0.53193383,69703.0,69702.0,0.31709925]
[1730527890164,0.51847657,69703.0,69702.0,0.31709925]
[1730527890389,0.44593741,69703.0,69702.0,0.31709925]
[1730527890599,0.51348365,69703.0,69702.0,0.31709925]
[1730527890807,0.5269364,69703.0,69702.0,0.31709925]
[1730527892463,0.52695252,69703.0,69702.0,0.31709925]
[1730527892913,0.42695252,69703.0,69702.0,0.31709925]
[1730527893346,0.38209876,69703.0,69702.0,0.31709925]
[1730527893773,0.36864601,69703.0,69702.0,0.31709925]
[1730527894032,0.19248112,69703.0,69702.0,0.31709925]
[1730527894686,0.19248513,69703.0,69702.0,0.31709925]
[1730527894899,0.20593035,69703.0,69702.0,0.31709925]
[1730527895119,0.14140939,69703.0,69702.0,0.31709925]
[1730527895993,0.14140939,69703.0,69702.0,0.31909925]
[1730527896202,0.18442316,69703.0,69702.0,0.31909925]
[1730527896413,0.18442316,69703.0,69702.0,0.31809925]
[1730527896627,0.18442316,69703.0,69702.0,0.31709925]
[1730527896839,0.20593035,69703.0,69702.0,0.31709925]
[1730527897044,0.14140939,69703.0,69702.0,0.31709925]
[1730527897480,0.19248513,69703.0,69702.0,0.31709925]
[1730527897965,0.20592473,69703.0,69702.0,0.31709925]
[1730527898182,0.20592473,69703.0,69702.0,0.31809925]
[1730527898393,0.14140377,69703.0,69702.0,0.31809925]
[1730527898610,0.14140377,69703.0,69702.0,0.31709925]
[1730527899023,0.14140377,69703.0,69702.0,0.32009925]
[1730527899270,0.14140377,69703.0,69702.0,0.32109925]
[1730527899477,0.14140377,69703.0,69702.0,0.32009925]
[1730527899895,0.14140377,69703.0,69702.0,0.32309925]
[1730527900313,0.18441136,69703.0,69702.0,0.32309925]
[1730527902020,0.17097176,69703.0,69702.0,0.32309925]
[1730527905087,0.18440812,69703.0,69702.0,0.32309925]
[1730527905314,0.14140053,69703.0,69702.0,0.32309925]
[1730527905999,0.04097453,69703.0,69702.0,0.32309925]
[1730527906232,0.14140053,69703.0,69702.0,0.32309925]
[1730527907077,0.12796417,69703.0,69702.0,0.32309925]
[1730527910710,0.13864338,69703.0,69702.0,0.32309925]
[1730527911568,0.03821738,69703.0,69702.0,0.32309925]
[1730527912228,0.13864338,69703.0,69702.0,0.32309925]
[1730527913083,0.13808258,69703.0,69702.0,0.32309925]
[1730527918353,0.13808258,69703.0,69702.0,0.14609925]
[1730527918812,0.18106048,69703.0,69702.0,0.14609925]
[1730527919230,0.18046172,69703.0,69702.0,0.14609925]
[1730527920106,0.13748382,69703.0,69702.0,0.14609925]
[1730527920558,0.61307822,69703.0,69702.0,0.007644]
[1730527920779,0.61807822,69703.0,69702.0,0.007644]
[1730527921463,0.61807822,69703.0,69702.0,0.004644]
[1730527921700,0.61807822,69703.0,69702.0,0.001644]
[1730527921931,0.62107822,69703.0,69702.0,0.001644]
[1730527922150,0.62507822,69703.0,69702.0,0.001644]
[1730527922783,0.62207822,69703.0,69702.0,0.001644]
[1730527923217,0.61707822,69703.0,69702.0,0.001644]
[1730527923438,0.62207822,69703.0,69702.0,0.001644]
[1730527924209,0.62607822,69703.0,69702.0,0.001644]
[1730527924639,0.62107822,69703.0,69702.0,0.001644]
[1730527924853,0.62607822,69703.0,69702.0,0.001644]
[1730527925289,0.62519432,69703.0,69702.0,0.001644]
[1730527927924,0.62719432,69703.0,69702.0,0.001644]
[1730527928160,0.62711767,69703.0,69702.0,0.001644]
[1730527929143,0.62511767,69703.0,69702.0,0.001644]
[1730527929342,0.71421699,69703.0,69702.0,0.001644]
[1730527929996,0.71423057,69703.0,69702.0,0.001644]
[1730527930209,0.71223057,69703.0,69702.0,0.001644]
[1730527931073,0.70721741,69703.0,69702.0,0.001644]
[1730527931294,0.71221741,69703.0,69702.0,0.001644]
[1730527932738,0.70721741,69703.0,69702.0,0.001644]
[1730527933199,0.71221741,69703.0,69702.0,0.001644]
[1730527934884,0.71343909,69703.0,69702.0,0.001644]
[1730527935106,0.71543909,69703.0,69702.0,0.001644]
[1730527936569,0.71343909,69703.0,69702.0,0.001644]
[1730527937743,0.53783909,69703.0,69702.0,0.001644]
[1730527939186,0.53763721,69703.0,69702.0,0.001644]
[1730527948171,0.53263721,69703.0,69702.0,0.001644]
[1730527948378,0.44553789,69703.0,69702.0,0.001644]
[1730527948581,0.45053789,69703.0,69702.0,0.001644]
[1730527948759,0.55799973,69703.0,69702.0,0.001644]
[1730527949174,0.45053789,69703.0,69702.0,0.001644]
[1730527949388,0.44553789,69703.0,69702.0,0.001644]
[1730527949590,0.45053789,69703.0,69702.0,0.001644]
[1730527950236,0.44553789,69703.0,69702.0,0.001644]
[1730527950443,0.45053789,69703.0,69702.0,0.001644]
[1730527951562,0.44553789,69703.0,69702.0,0.001644]
[1730527951848,0.45053789,69703.0,69702.0,0.001644]
[1730527952493,0.44553789,69703.0,69702.0,0.001644]
[1730527952704,0.45053789,69703.0,69702.0,0.001644]
[1730527954035,0.44553789,69703.0,69702.0,0.001644]
[1730527954254,0.45053789,69703.0,69702.0,0.001644]
[1730527954896,0.44553789,69703.0,69702.0,0.001644]
[1730527955106,0.45053789,69703.0,69702.0,0.001644]
[1730527960685,0.45006114,69703.0,69702.0,0.001644]
[1730527961863,0.44506114,69703.0,69702.0,0.001644]
[1730527962063,0.45006114,69703.0,69702.0,0.001644]
[1730527962889,0.45154558,69703.0,69702.0,0.001644]
[1730527963303,0.58065847,69703.0,69702.0,0.001644]
[1730527963917,0.57565847,69703.0,69702.0,0.001644]
[1730527964334,0.45154558,69703.0,69702.0,0.001644]
[1730527964598,0.5386449,69703.0,69702.0,0.001644]
[1730527966101,0.5336449,69703.0,69702.0,0.001644]
[1730527966310,0.5386449,69703.0,69702.0,0.001644]
[1730527966526,0.5336449,69703.0,69702.0,0.001644]
[1730527966740,0.5386449,69703.0,69702.0,0.001644]
[1730527968059,0.5336449,69703.0,69702.0,0.001644]
[1730527968273,0.5386449,69703.0,69702.0,0.001644]